bitfinex/quotes_SOLUSD_20260306
["timestamp","ask_amount","ask_price","bid_price","bid_amount"]
[1772760694274,0.1,88.9,88.843,4.73483494]
[1772760694469,0.75345826,88.937,88.864,4.82477569]
[1772760694694,0.75345826,88.937,88.877,1.04100092]
[1772760694890,0.75345826,88.937,88.87,3.69383402]
[1772760694891,11.99739353,88.937,88.881,0.28432314]
[1772760695104,0.75413041,88.936,88.886,1.04100092]
[1772760695293,11.24329536,88.942,88.886,1.04100092]
[1772760695497,0.56242904,88.945,88.895,1.05699181]
[1772760695676,0.56242904,88.945,88.907,1.05699181]
[1772760695878,0.56242904,88.945,88.907,0.28432314]
[1772760696078,1e-08,88.945,88.916,1.05699181]
[1772760696576,44.93001431,89.028,88.92,1.05699181]
[1772760696796,4.82477569,89.097,88.919,0.28432314]
[1772760696797,28.08901278,89.003,88.929,1.05699181]
[1772760697101,39.60970984,88.982,88.928,1.05699181]
[1772760697283,11.50014282,88.97,88.904,1.05699181]
[1772760697479,11.50014282,88.96,88.904,1.05699181]
[1772760697889,0.28432314,88.969,88.893,0.28432314]
[1772760697890,0.28432314,88.969,88.906,1.05699181]
[1772760698487,39.60970984,88.982,88.915,1.05699181]
[1772760698488,0.2759071,88.982,88.915,1.05699181]
[1772760698688,0.2759071,88.982,88.938,1.05699181]
[1772760699009,0.2759071,88.982,88.947,11.24265011]
[1772760699178,1e-08,88.982,88.955,4.82477569]
[1772760699483,1e-08,88.982,88.956,1.05699181]
[1772760700088,1e-08,88.982,88.947,39.3492754]
[1772760700499,1e-08,88.982,88.948,1.05699181]
[1772760701097,11.50014282,88.98,88.925,1.05699181]
[1772760701310,1e-08,88.982,88.909,1.05699181]
[1772760701311,11.50014282,88.96,88.909,1.05699181]
[1772760701482,11.50014282,88.95,88.909,1.05699181]
[1772760701674,11.50014282,88.94,88.878,1.05699181]
[1772760701880,11.50014282,88.94,88.883,1.05699181]
[1772760702182,11.50014282,88.93,88.877,11.25150488]
[1772760702391,11.50014282,88.91,88.859,28.13440006]
[1772760702604,13.2457796,88.975,88.859,28.13440006]
[1772760702605,13.2457796,88.975,88.859,1.05699181]
[1772760702905,3.69383402,88.955,88.858,11.25385319]
[1772760703081,11.24758176,88.908,88.848,1.05699181]
[1772760703379,11.50014282,88.92,88.85,3.69383402]
[1772760703581,11.50014282,88.95,88.851,1.05699181]
[1772760703774,11.50014282,88.95,88.872,1.05699181]
[1772760703775,0.28432314,88.946,88.872,1.05699181]
[1772760704000,11.50014282,88.92,88.864,1.05699181]
[1772760704304,11.50014282,88.91,88.866,1.05699181]
[1772760704504,11.50014282,88.91,88.854,1.05699181]
[1772760704701,0.28432314,88.909,88.854,1.05699181]
[1772760705086,11.50014282,88.89,88.835,5.8817675]
[1772760705283,11.50014282,88.89,88.836,1.05699181]
[1772760705593,0.28432314,88.907,88.836,1.05699181]
[1772760706605,11.50014282,88.93,88.856,1.05699181]
[1772760706805,39.49807394,88.932,88.856,1.05699181]
[1772760706806,11.50014282,88.91,88.856,1.05699181]
[1772760707006,11.50014282,88.9,88.838,3.69383402]
[1772760707182,3.69383402,88.923,88.841,1.05699181]
[1772760707183,11.50014282,88.89,88.841,1.05699181]
[1772760707385,0.28432314,88.889,88.824,1.05699181]
[1772760707583,11.50014282,88.88,88.825,1.05699181]
[1772760708108,11.50014282,88.87,88.81,1.05699181]
[1772760708407,0.28432314,88.869,88.81,1.05699181]
[1772760709125,11.50014282,88.86,88.811,12.31685826]
[1772760709287,0.28432314,88.859,88.811,12.31685826]
[1772760709486,0.28432314,88.867,88.812,1.05699181]
[1772760709784,11.50014282,88.85,88.801,11.26113444]
[1772760711014,0.28432314,88.849,88.801,11.26113444]
[1772760711214,0.28432314,88.847,88.801,11.26113444]
[1772760711387,11.50014282,88.84,88.8,0.2]
[1772760712907,0.0203134,88.829,88.8,0.17968643]
[1772760713206,0.28432314,88.827,88.8,0.17968643]
[1772760713411,11.50014282,88.82,88.774,1.05699181]
[1772760713712,11.50014282,88.82,88.768,11.2651984]
[1772760714511,45.00124143,88.887,88.769,3.69383402]
[1772760714808,0.28432314,88.849,88.776,1.06714859]
[1772760715008,11.50014282,88.85,88.776,1.06714859]
[1772760715402,11.50014282,88.85,88.769,3.69383402]
[1772760715403,39.6770006,88.849,88.778,1.06714859]
[1772760715995,0.28432314,88.839,88.778,1.06714859]
[1772760717405,11.50014282,88.83,88.768,1.06714859]
[1772760717745,11.25644431,88.838,88.776,1.06714859]
[1772760718097,11.50014282,88.83,88.776,1.06714859]
[1772760718406,0.28432314,88.829,88.776,1.06714859]
[1772760719315,0.28432314,88.827,88.777,11.26417878]
[1772760719694,0.28432314,88.827,88.778,1.06714859]
[1772760719894,11.25771153,88.828,88.778,1.06714859]
[1772760720113,0.28432314,88.859,88.778,1.06714859]
[1772760720309,0.28432314,88.859,88.781,1.06714859]
[1772760720815,39.37760876,88.883,88.796,1.06714859]
[1772760720995,11.50014282,88.88,88.81,1.06714859]
[1772760721312,11.50014282,88.87,88.81,1.06714859]
[1772760721516,39.38381212,88.869,88.812,1.06714859]
[1772760722098,11.25251775,88.869,88.812,1.06714859]
[1772760722510,11.2512517,88.879,88.812,1.06714859]
[1772760722920,0.28432314,88.878,88.812,1.06714859]
[1772760723117,11.2512517,88.879,88.816,1.06714859]
[1772760723622,39.37495077,88.889,88.818,1.06714859]
[1772760723826,11.24998593,88.889,88.821,1.06714859]
[1772760724116,0.28432314,88.888,88.821,1.06714859]
[1772760724504,0.14216157,88.888,88.821,1.06714859]
[1772760724820,0.28432314,88.888,88.821,1.06714859]
[1772760725400,0.28432314,88.886,88.823,1.06714859]
[1772760725998,3.69383402,88.907,88.83,4.82477569]
[1772760726212,3.69383402,88.907,88.836,1.06714859]
[1772760726427,11.50014282,88.89,88.836,1.06714859]
[1772760726615,0.28432314,88.889,88.836,1.06714859]
[1772760727821,0.28432314,88.889,88.812,1.06714859]
[1772760727822,0.28432314,88.879,88.812,1.06714859]
[1772760728021,11.50014282,88.87,88.812,1.06714859]
[1772760728234,0.28432314,88.869,88.812,1.06714859]
[1772760728725,11.2501125,88.888,88.824,1.06714859]
[1772760729033,11.2501125,88.888,88.826,1.06714859]
[1772760729226,39.37539375,88.888,88.826,1.06714859]
[1772760729606,0.14216157,88.887,88.826,1.06714859]
[1772760729929,0.14216157,88.887,88.828,1.06714859]
[1772760730727,3.69383402,88.877,88.812,1.06714859]
[1772760730924,0.28432314,88.859,88.802,1.06714859]
[1772760731426,0.28432314,88.839,88.789,1.06714859]
[1772760731727,39.68586992,88.829,88.789,1.06714859]
[1772760731910,39.68586992,88.829,88.768,1.06714859]
[1772760732237,11.54190793,88.829,88.768,1.06714859]
[1772760732528,39.68586992,88.829,88.768,1.06714859]
[1772760734131,39.68586992,88.829,88.77,1.06714859]
[1772760734424,11.50014282,88.82,88.77,1.06714859]
[1772760734629,39.68586992,88.829,88.77,1.06714859]
[1772760734828,0.02063521,88.828,88.77,1.06714859]
[1772760735006,11.25758479,88.829,88.77,1.06714859]
[1772760735332,45.01103371,88.868,88.769,95.7541484]
[1772760735333,39.38913084,88.857,88.785,1.06714859]
[1772760735508,0.02063521,88.856,88.785,1.06714859]
[1772760735825,0.02063521,88.856,88.782,0.28432314]
[1772760735826,0.02139882,88.889,88.807,4.76098261]
[1772760736026,0.02139882,88.889,88.825,1.06714859]
[1772760736942,0.02215548,88.878,88.825,1.06714859]
[1772760737331,0.02215548,88.849,88.769,1.06714859]
[1772760737535,0.02215548,88.828,88.769,1.06714859]
[1772760738128,11.45671705,88.82,88.771,1.06714859]
[1772760738339,0.02291268,88.826,88.771,1.06714859]
[1772760738736,11.45671705,88.82,88.771,1.06714859]
[1772760739331,0.28432314,88.827,88.771,1.06714859]
[1772760739642,11.45671705,88.82,88.771,1.06714859]
[1772760739839,0.30872146,88.827,88.771,1.06714859]
[1772760740024,0.02439832,88.826,88.771,1.06714859]
[1772760740225,0.28432314,88.825,88.773,1.06714859]
[1772760740426,11.45671705,88.82,88.773,1.06714859]
[1772760740848,0.02439832,88.819,88.773,1.06714859]
[1772760741151,0.28432314,88.825,88.773,1.06714859]
[1772760742241,0.28432314,88.823,88.775,1.06714859]
[1772760743331,0.02658114,88.819,88.768,11.2652118]
[1772760743642,0.02658114,88.808,88.763,1.06714859]
[1772760743826,0.02658114,88.808,88.761,11.26616912]
[1772760744347,0.16945638,88.789,88.741,1.06714859]
[1772760744529,0.02729481,88.788,88.741,1.06714859]
[1772760744729,0.02729481,88.788,88.744,11.26824367]
[1772760744943,0.02729481,88.788,88.741,1.06714859]
[1772760745542,0.02729481,88.788,88.716,3.69383402]
[1772760745543,0.02800097,88.79,88.752,11.26735172]
[1772760745846,0.02800097,88.788,88.752,11.26735172]
[1772760747345,0.02939457,88.787,88.743,1.06714859]
[1772760747772,0.28432314,88.786,88.751,15.25268917]
[1772760747931,0.28432314,88.786,88.751,3.98524844]
[1772760748445,0.28432314,88.786,88.753,1.07697342]
[1772760748849,0.28432314,88.796,88.753,1.07697342]
[1772760749042,0.31576294,88.796,88.753,1.07697342]
[1772760749236,11.48815685,88.79,88.751,3.98524844]
[1772760749553,0.0314398,88.789,88.751,3.98524844]
[1772760749738,0.28432314,88.788,88.751,3.95382898]
[1772760750649,0.28432314,88.788,88.752,11.26735172]
[1772760750950,0.28432314,88.788,88.753,1.08285832]
[1772760751730,0.28432314,88.786,88.754,11.26709782]
[1772760751931,0.28432314,88.786,88.754,1.08285832]
[1772760752130,0.28432314,88.786,88.751,3.95382898]
[1772760752549,0.28432314,88.786,88.753,1.08285832]
[1772760753053,0.28432314,88.786,88.751,3.95382898]
[1772760753253,11.45671705,88.78,88.751,3.95382898]
[1772760753442,11.45671705,88.78,88.732,1.08285832]
[1772760753443,0.28432314,88.779,88.732,1.08285832]
[1772760753637,0.28432314,88.779,88.723,1.08285832]
[1772760753837,0.28432314,88.777,88.725,1.08285832]
[1772760755937,0.28432314,88.775,88.727,1.08285832]
[1772760757654,0.28432314,88.775,88.726,39.44728715]
[1772760757856,0.28432314,88.749,88.707,1.08285832]
[1772760758062,0.28432314,88.747,88.707,1.08285832]
[1772760758360,0.28432314,88.747,88.708,11.27294043]
[1772760758558,0.28432314,88.747,88.707,1.08285832]
[1772760758853,0.28432314,88.729,88.705,1e-08]
[1772760759353,0.28432314,88.747,88.706,1.08285832]
[1772760759945,11.45671705,88.74,88.706,1.08285832]
[1772760761764,11.26900235,88.739,88.706,1.08285832]
[1772760762461,39.44150823,88.739,88.705,1e-08]
[1772760763258,0.28432314,88.738,88.705,1e-08]
[1772760763941,11.45671705,88.73,88.705,1e-08]
[1772760764341,11.45671705,88.75,88.705,1e-08]
[1772760764554,0.28432314,88.749,88.705,1e-08]
[1772760765353,0.28432314,88.769,88.705,1e-08]
[1772760765865,11.45671705,88.76,88.705,1e-08]
[1772760766065,39.42862292,88.768,88.705,1e-08]
[1772760766271,11.26392502,88.779,88.707,1.08285832]
[1772760766645,0.28432314,88.778,88.707,1.08285832]
[1772760767340,0.14216157,88.778,88.707,1.08285832]
[1772760767778,0.28432314,88.778,88.707,1.08285832]
[1772760768347,0.28432314,88.776,88.712,1.08285832]
[1772760770363,11.26138807,88.799,88.724,1.08285832]
[1772760770568,11.26138807,88.799,88.737,1.08285832]
[1772760771458,0.28432314,88.803,88.737,1.08285832]
[1772760772151,0.28432314,88.801,88.741,3.69383402]
[1772760772358,0.14216157,88.801,88.742,1.08285832]
[1772760772557,0.28432314,88.801,88.742,1.08285832]
[1772760774265,11.45671705,88.82,88.749,1.08285832]
[1772760774657,0.28432314,88.819,88.749,1.08285832]
[1772760775562,0.28432314,88.809,88.749,1.08285832]
[1772760776577,0.28432314,88.807,88.751,1.08285832]
[1772760778872,0.28432314,88.805,88.753,1.08285832]
[1772760780873,0.28432314,88.803,88.755,1.08285832]
[1772760781072,0.28432314,88.803,88.754,39.43484237]
[1772760781073,11.45671705,88.8,88.741,1.08285832]
[1772760781280,0.28432314,88.779,88.731,1.08285832]
[1772760781492,0.28432314,88.789,88.731,1.08285832]
[1772760781958,0.02007646,88.788,88.731,1.08285832]
[1772760782568,0.02007646,88.778,88.731,1.08285832]
[1772760783092,0.02054572,88.788,88.733,1.08285832]
[1772760784668,0.14216157,88.796,88.733,1.08285832]
[1772760785068,0.28432314,88.795,88.735,1.08285832]
[1772760785788,11.26176854,88.796,88.736,4.82477569]
[1772760785966,0.28432314,88.8,88.74,1.08285832]
[1772760786290,0.28432314,88.8,88.739,3.69383402]
[1772760786291,11.26117581,88.801,88.742,1.08285832]
[1772760786488,11.26060783,88.806,88.746,1.08285832]
[1772760787271,0.02192694,88.807,88.748,1.08285832]
[1772760788893,0.28432314,88.817,88.751,1.08285832]
[1772760789394,0.28432314,88.815,88.753,1.08285832]
[1772760791194,0.02412734,88.814,88.753,1.08285832]
[1772760791691,0.28432314,88.813,88.755,1.08285832]
[1772760792567,11.25948611,88.814,88.76,1.08285832]
[1772760792823,11.25948611,88.814,88.759,3.69383402]
[1772760792824,11.25948611,88.814,88.762,1.08285832]
[1772760793687,0.0245441,88.825,88.766,1.08285832]
[1772760796579,0.0245441,88.825,88.768,1.08285832]
[1772760796780,0.02617854,88.819,88.768,1.08285832]
[1772760797095,0.02659045,88.818,88.762,1.08285832]
[1772760798793,0.02659045,88.818,88.764,1.08285832]
[1772760799412,11.28482472,88.83,88.766,1.08285832]
[1772760800002,0.28432314,88.834,88.767,1.08285832]
[1772760800498,28.16317251,88.857,88.789,3.69383402]
[1772760800674,0.31208557,88.856,88.788,1.08285832]
[1772760800878,0.31208557,88.856,88.785,0.28432314]
[1772760800879,0.0281383,88.851,88.793,1.08285832]
[1772760801975,0.0281383,88.851,88.795,1.08285832]
[1772760804077,0.0281383,88.851,88.797,1.08285832]
[1772760806282,0.0281383,88.851,88.799,1.08285832]
[1772760806684,0.28432314,88.856,88.799,1.08285832]
[1772760806881,0.02998475,88.855,88.799,1.08285832]
[1772760807978,0.03034886,88.849,88.799,1.08285832]
[1772760808392,0.0310467,88.839,88.778,1.08285832]
[1772760808598,0.0310467,88.828,88.778,1.08285832]
[1772760809188,0.03138747,88.849,88.778,1.08285832]
[1772760810401,0.03138747,88.849,88.771,0.28432314]
[1772760810402,0.03138747,88.849,88.783,1.08285832]
[1772760812576,0.03138747,88.849,88.767,49.88622553]
[1772760812577,0.03270788,88.819,88.748,1.08285832]
[1772760812788,0.03270788,88.808,88.748,1.08285832]
[1772760813297,0.28432314,88.809,88.748,1.08285832]
[1772760813298,0.03304302,88.798,88.748,1.08285832]
[1772760814495,0.03304302,88.798,88.75,1.08285832]
[1772760817512,11.25896338,88.819,88.755,1.08285832]
[1772760817690,0.03427862,88.817,88.755,1.08285832]
[1772760818782,0.03427862,88.817,88.745,45.07286965]
[1772760818783,0.03457851,88.815,88.757,1.08285832]
[1772760819806,0.31948713,88.823,88.76,1.08285832]
[1772760820008,0.03516399,88.822,88.76,1.08285832]
[1772760820198,0.03516399,88.819,88.76,1.08285832]
[1772760820398,0.03516399,88.818,88.76,1.08285832]
[1772760820990,0.03545331,88.799,88.745,1.08285832]
[1772760821192,0.03545331,88.798,88.746,1.08285832]
[1772760821910,0.03574047,88.816,88.749,1.08285832]
[1772760822097,0.17790204,88.809,88.749,1.08285832]
[1772760822409,0.03574047,88.808,88.749,1.08285832]
[1772760823508,0.03602515,88.807,88.751,1.08285832]
[1772760824910,39.55258168,88.809,88.751,1.08285832]
[1772760824911,11.26012003,88.809,88.751,1.08285832]
[1772760825816,11.26012003,88.809,88.75,95.77464787]
[1772760825817,0.03659342,88.816,88.753,1.08285832]
[1772760826109,0.03659342,88.816,88.752,39.43573102]
[1772760826110,0.03659342,88.816,88.756,1.08285832]
[1772760826291,11.25839484,88.823,88.758,1.08285832]
[1772760826490,0.03686561,88.848,88.778,3.69383402]
[1772760826711,0.03686561,88.848,88.787,1.08285832]
[1772760827099,0.28432314,88.851,88.787,1.08285832]
[1772760827302,11.25318469,88.864,88.797,1.08285832]
[1772760827505,0.28432314,88.863,88.797,1.08285832]
[1772760827896,11.2894475,88.873,88.807,1.08285832]
[1772760828612,0.1,88.88,88.816,1.08285832]
[1772760828806,0.1,88.88,88.827,1.08285832]
[1772760829907,0.1,88.88,88.829,1.08285832]
[1772760831820,0.1,88.88,88.832,4.82477569]
[1772760832015,0.1,88.88,88.837,1.08285832]
[1772760834103,0.1,88.88,88.839,1.08285832]
[1772760834499,0.1,88.88,88.846,4.82477569]
[1772760834827,0.1,88.89,88.848,1.03285832]
[1772760835211,0.14216157,88.92,88.856,1.03285832]
[1772760835408,0.13922841,88.919,88.858,1.03285832]
[1772760836205,0.13922841,88.919,88.86,1.03285832]
[1772760836920,27.03710176,88.926,88.861,1.10247253]
[1772760838824,27.03710176,88.926,88.86,0.28432314]
[1772760838825,0.28432314,88.925,88.863,1.10247253]
[1772760839320,25.8214249,88.926,88.864,1.2446341]
[1772760839526,25.8214249,88.926,88.865,1.10247253]
[1772760840334,25.8214249,88.926,88.866,1.10247253]
[1772760841427,0.1,88.94,88.868,1.38679567]
[1772760841724,11.34363665,88.94,88.876,1.10247253]
[1772760842106,0.1,88.94,88.876,1.10247253]
[1772760842506,0.1,88.94,88.878,1.10247253]
[1772760842732,0.1,88.94,88.887,1.10247253]
[1772760842929,0.1,88.94,88.888,1.38679567]
[1772760843225,0.1,88.94,88.892,40.47609444]
[1772760843226,11.561245,88.94,88.892,40.47609444]
[1772760843426,0.1,88.94,88.893,1.10247253]
[1772760843817,0.1,88.94,88.895,1.10247253]
[1772760844528,0.1,88.94,88.898,1.10247253]
[1772760844705,0.1,88.97,88.898,1.10247253]
[1772760844910,0.1,88.97,88.91,1.05247253]
[1772760845431,0.1,88.97,88.915,1.05247253]
[1772760845908,0.10423512,88.969,88.915,1.05247253]
[1772760846325,0.1,88.97,88.918,1.05247253]
[1772760847635,0.1,88.97,88.921,1.05247253]
[1772760848905,0.10555684,88.969,88.921,1.05247253]
[1772760850616,0.1,88.97,88.923,1.1946341]
[1772760851342,0.10683685,88.969,88.918,1.05247253]
[1772760852137,0.10726622,88.959,88.918,1.05247253]
[1772760853137,0.10726622,88.959,88.919,11.24619035]
[1772760853342,0.10726622,88.959,88.919,12.29866288]
[1772760854937,0.1,88.97,88.92,1.05247253]
[1772760854938,0.10848602,88.969,88.92,1.05247253]
[1772760855125,0.10848602,88.968,88.922,1.05247253]
[1772760856731,0.1,88.97,88.922,1.05247253]
[1772760857438,0.1,88.97,88.924,1.05247253]
[1772760858456,0.1,88.97,88.908,0.28432314]
[1772760858457,0.10966578,88.969,88.908,1.05247253]
[1772760859549,0.11004576,88.968,88.91,1.05247253]
[1772760861655,0.11079456,88.959,88.911,11.24720225]
[1772760861837,0.11079456,88.959,88.912,1.05247253]
[1772760862351,0.11116317,88.949,88.899,1.05247253]
[1772760862642,0.11116317,88.939,88.89,1.05247253]
[1772760862946,0.11153246,88.929,88.89,1.05247253]
[1772760863246,0.11153246,88.929,88.881,1.05247253]
[1772760863631,0.11153246,88.928,88.883,1.05247253]
[1772760864728,11.24492572,88.929,88.883,1.05247253]
[1772760865530,0.11189291,88.938,88.883,1.05247253]
[1772760865848,0.1122467,88.949,88.885,1.05247253]
[1772760866446,39.34839064,88.949,88.885,1.05247253]
[1772760866647,0.11259392,88.948,88.885,1.05247253]
[1772760867756,0.11259392,88.948,88.86,4.82477569]
[1772760867757,11.44196445,88.94,88.887,1.05247253]
[1772760867938,0.11329088,88.938,88.887,1.05247253]
[1772760868138,39.34839064,88.949,88.887,1.05247253]
[1772760868139,0.11329088,88.947,88.887,1.05247253]
[1772760869354,37.96168152,88.949,88.887,1.10911797]
[1772760870752,11.44196445,88.96,88.889,1.10911797]
[1772760871055,11.44196445,88.96,88.89,1.10911797]
[1772760871357,11.44196445,88.95,88.89,1.10911797]
[1772760872245,95.54533906,88.963,88.888,11.2501125]
[1772760872557,11.44196445,88.93,88.888,12.35923047]
[1772760872859,11.24492572,88.929,88.89,11.24985937]
[1772760873153,11.24492572,88.929,88.89,12.35897734]
[1772760873347,11.24492572,88.929,88.891,1.10911797]
[1772760873933,11.24366138,88.939,88.891,1.10911797]
[1772760874331,0.1,88.98,88.892,1.10911797]
[1772760874553,11.23987006,88.969,88.899,1.10911797]
[1772760874745,28.09744216,88.977,88.902,1.10911797]
[1772760874952,28.09744216,88.977,88.903,1.10911797]
[1772760875146,28.09744216,88.977,88.905,1.10911797]
[1772760875343,11.23860686,88.979,88.91,1.10911797]
[1772760875847,0.1,88.98,88.919,1.10911797]
[1772760876257,1e-08,88.98,88.925,8.51860971]
[1772760876441,1e-08,88.98,88.939,1.10911797]
[1772760877252,1e-08,88.98,88.942,1.10911797]
[1772760879456,1e-08,88.98,88.944,1.10911797]
[1772760880155,1e-08,88.98,88.945,1.10911797]
[1772760880348,1e-08,88.98,88.946,1.10911797]
[1772760881755,1e-08,88.98,88.938,1.10911797]
[1772760881955,11.44196446,88.98,88.938,1.10911797]
[1772760882542,1e-08,88.98,88.938,1.10911797]
[1772760883239,11.44196446,88.98,88.938,1.10911797]
[1772760883433,11.44196445,88.97,88.932,11.24454639]
[1772760883651,11.24113355,88.959,88.918,12.3554348]
[1772760883857,11.24113355,88.959,88.919,1.10911797]
[1772760884240,39.34396743,88.959,88.919,1.10911797]
[1772760884436,11.44196445,88.95,88.908,1.10911797]
[1772760884636,11.44196445,88.95,88.909,11.24745526]
[1772760885658,11.44196445,88.95,88.91,1.10911797]
[1772760886048,39.34839064,88.949,88.91,1.10911797]
[1772760886244,39.34839064,88.949,88.911,11.24720225]
[1772760886451,39.34839064,88.949,88.912,1.10911797]
[1772760887758,11.44196445,88.95,88.907,11.24765914]
[1772760888065,11.44196445,88.95,88.907,12.35677711]
[1772760888267,11.44196445,88.94,88.903,1.10911797]
[1772760888450,11.44196445,88.95,88.903,1.10911797]
[1772760889565,11.24239732,88.949,88.905,1.10911797]
[1772760890265,39.34839064,88.949,88.905,1.10911797]
[1772760890453,11.24239732,88.949,88.905,1.10911797]
[1772760891365,11.23987006,88.969,88.905,1.10911797]
[1772760891553,11.23987006,88.969,88.907,1.10911797]
[1772760892066,1e-08,88.98,88.912,1.10911797]
[1772760892357,11.23860686,88.979,88.914,1.10911797]
[1772760892560,11.23860686,88.979,88.908,4.82477569]
[1772760892561,11.23860686,88.979,88.915,1.10911797]
[1772760892876,39.33512401,88.979,88.915,1.10911797]
[1772760893646,11.44196445,88.97,88.917,1.10911797]
[1772760894956,39.33512401,88.979,88.917,1.10911797]
[1772760896270,11.44196446,88.98,88.919,1.10911797]
[1772760896860,11.44196445,88.97,88.919,1.10911797]
[1772760897163,1e-08,88.98,88.919,1.10911797]
[1772760897364,1e-08,88.98,88.921,1.10911797]
[1772760897551,1e-08,88.98,88.922,1.39344111]
[1772760897891,1e-08,88.98,88.921,0.28432314]
[1772760897892,1e-08,88.98,88.925,1.10911797]
[1772760898063,1e-08,88.98,88.926,0.28432314]
[1772760898363,1e-08,88.98,88.929,1.10911797]
[1772760900464,1e-08,88.98,88.934,1.39344111]
[1772760900779,1e-08,88.98,88.937,1.10911797]
[1772760902173,0.1,89.07,88.938,4.82477569]
[1772760902470,11.22851143,89.059,88.965,3.69383402]
[1772760902672,11.22851143,89.059,88.981,1.10911797]
[1772760902971,0.1,89.06,88.982,4.82477569]
[1772760903170,0.10793944,89.119,88.98,0.28432314]
[1772760903378,11.44196445,89.16,88.954,11.43614118]
[1772760903379,0.10793944,89.129,88.993,4.82477569]
[1772760903567,39.25835361,89.153,89.008,3.69383402]
[1772760903568,0.10793944,89.152,89.008,3.69383402]
[1772760903878,0.10793944,89.129,89.033,3.69383402]
[1772760904063,0.10726947,89.154,89.054,3.69383402]
[1772760904381,0.10726947,89.181,89.084,8.51860971]
[1772760904556,0.10726947,89.181,89.096,3.69383402]
[1772760904871,11.44196445,89.15,89.103,1.1127527]
[1772760905072,1.02839348,89.129,89.068,3.69383402]
[1772760905263,1.02839348,89.119,89.066,0.28432314]
[1772760905662,1.02839348,89.139,89.066,5.10909883]
[1772760905865,11.21579183,89.16,89.07,0.28432314]
[1772760906069,1.02860887,89.162,89.065,218.94122269]
[1772760906070,1.02860887,89.162,89.082,4.82477569]
[1772760906273,11.21579183,89.16,89.09,3.69383402]
[1772760906578,11.21579183,89.16,89.091,0.28432314]
[1772760906775,11.21579183,89.16,89.091,5.10909883]
[1772760907087,1.02860887,89.159,89.092,1.0389711]
[1772760908255,22.65775628,89.16,89.094,1.0389711]
[1772760908256,1.02902859,89.139,89.094,1.0389711]
[1772760908461,1.02902859,89.15,89.094,1.0389711]
[1772760908852,1.02925322,89.149,89.094,1.0389711]
[1772760909080,0.27590711,89.161,89.098,4.82477569]
[1772760909254,0.27590711,89.161,89.104,1.0389711]
[1772760909576,0.27590711,89.161,89.106,1.0389711]
[1772760909875,0.27590711,89.161,89.107,1.0389711]
[1772760910183,1.02947513,89.159,89.094,1.0389711]
[1772760910372,1.02947513,89.149,89.095,12.2629455]
[1772760910552,1.02947513,89.149,89.096,1.0389711]
[1772760911274,1.02968785,89.16,89.097,1.0389711]
[1772760911573,1.02968785,89.158,89.097,1.0389711]
[1772760911975,1.02990114,89.139,89.095,11.2239744]
[1772760912173,1.02990114,89.119,89.073,1.0389711]
[1772760912383,1.02990114,89.109,89.062,1.0389711]
[1772760912561,1.02990114,89.11,89.062,1.0389711]
[1772760912944,11.22107767,89.118,89.064,1.0389711]
[1772760913090,1.02990114,89.121,89.064,1.0389711]
[1772760913381,12.25093784,89.12,89.067,1.0389711]
[1772760913960,1.03032225,89.119,89.067,1.0389711]
[1772760914274,11.22107767,89.118,89.068,39.29581891]
[1772760914474,11.22107767,89.118,89.042,1.32329424]
[1772760914475,1.03032225,89.109,89.042,1.32329424]
[1772760914680,1.03032225,89.109,89.045,1.0389711]
[1772760915180,1.03032225,89.109,89.047,1.0389711]
[1772760915380,11.22107767,89.118,89.049,1.0389711]
[1772760915579,11.22057404,89.122,89.062,1.0389711]
[1772760915756,1.03052942,89.119,89.062,1.0389711]
[1772760915962,11.44196445,89.11,89.062,1.0389711]
[1772760916181,1.03073504,89.11,89.062,1.0389711]
[1772760916379,11.222211,89.109,89.064,1.0389711]
[1772760916677,1.03073504,89.108,89.064,1.0389711]
[1772760917161,1.03093641,89.115,89.064,1.0389711]
[1772760918077,1.03114354,89.109,89.064,1.0389711]
[1772760918585,1.03114354,89.107,89.065,11.22775501]
[1772760918762,1.03114354,89.107,89.066,1.0389711]
[1772760918963,1.03134029,89.121,89.066,1.0389711]
[1772760919284,1.03134029,89.099,89.052,11.22939406]
[1772760919661,1.03134029,89.089,89.051,1.0389711]
[1772760920288,1.03154579,89.079,89.039,11.23097155]
[1772760920492,1.03154579,89.079,89.031,1.0389711]
[1772760920669,3.69383402,89.115,88.975,44.95638912]
[1772760920670,1.03154579,89.059,89.016,1.0389711]
[1772760920866,1.03154579,89.059,89.017,11.23380927]
[1772760921189,1.03154579,89.059,89.018,1.0389711]
[1772760921364,1.03175439,89.07,89.018,1.0389711]
[1772760921565,11.22599041,89.079,89.018,1.0389711]
[1772760922067,12.25793628,89.079,89.018,1.0389711]
[1772760922268,1.03194587,89.069,89.017,11.23380927]
[1772760922469,1.03194587,89.059,89.017,11.23380927]
[1772760922769,1.03194587,89.057,89.011,12.27342112]
[1772760923286,1.03194587,89.057,89.012,1.0389711]
[1772760924883,11.22888968,89.056,89.013,11.23431408]
[1772760925091,1.03253439,89.055,89.013,1.0389711]
[1772760925386,39.30111389,89.056,89.004,1.0389711]
[1772760925387,1.03253439,89.049,89.004,1.0389711]
[1772760926986,12.44439531,89.07,89.006,1.0389711]